Cogmind - Beta 14 @@@ ROGUE MODE // 2024.10.20 @ 20:02:22 Player: Proroxy Result: Destroyed by G-47 Trooper with Particle Gun Performance ------------- Evolutions (3) 1500 Regions Visited (5) 1000 Robots Destroyed (46) 230 Value Destroyed (1469) 1469 Prototype IDs (6) 120 Alien Tech Used (0) 0 Bonus (60) 60 TOTAL SCORE: 4379 Bonus ------- Follower Combat Kills 60 Cogmind --------- Core Integrity 0/700 Matter 53/300 Energy 29/100 System Corruption 9% Temperature Cool (27) Movement Core (200) Ox3 Location -7/Factory Parts ------- > --- POWER (2) -------- (None) > --- PROPULSION (4) --- (None) > --- UTILITY (4) ------ Medium Storage Unit > --- WEAPON (3) ------- (None) > --- INVENTORY (10) --- Cooled Airjet Weight Redist. System Advanced Weight Redist. System Targeting Computer Force Booster Medium Reflective Plating Medium Reflective Plating Heavy Hammer Peak State ------------ > --- POWER ------------ Improved Deuterium Engine Micro Nuclear Core > --- PROPULSION ------- Carbon-fiber Leg Carbon-fiber Leg Titanium Leg Improved Carbon-fiber Leg > --- UTILITY ---------- High-capacity Storage Unit Advanced Weight Redist. System Advanced Weight Redist. System Improved Weapon Shielding > --- WEAPON ----------- Heavy Laser Heavy Laser Katana > --- INVENTORY -------- Light Ion Engine Improved Ion Engine Aluminum Leg Airjet Medium Storage Unit Weight Redist. System Advanced Visual Processing Unit Force Booster Core Shielding Improved Weapon Shielding Hardened Medium Armor Plating Improved Light Armor Plating Medium Reflective Plating Medium Reflective Plating Improved Shield Generator Heavy Assault Rifle [Rating: 46] Favorites ----------- Power Micro Nuclear Core Engine Light Ion Engine Power Core Micro Nuclear Core Propulsion Aluminum Leg Leg Aluminum Leg Wheel Wheel Hover Unit Airjet Utility Medium Storage Unit Device Advanced Weight Redist. System Storage Medium Storage Unit Processor Advanced Visual Processing Unit Protection Core Shielding Weapon Heavy Laser Energy Gun Heavy Laser Energy Cannon Particle Cannon Ballistic Gun Assault Rifle Launcher Grenade Launcher Special Weapon Welding Torch Slashing Weapon Katana Build | -11 -10 -10 -9 -8 -7 ------- Run | Yrd Mat Min Mat Mat Fac Slots Evolved 6 | . . . 2 2 2 Power 1 | . . . . . 1 Propulsion 2 | . . . 2 . . Utility 2 | . . . . 2 . Weapon 1 | . . . . . 1 Parts Attached 103 | 7 1 11 11 21 52 Power 18 | 1 . 4 1 1 11 Engine 12 | 1 . 4 . 1 6 Core 6 | . . . 1 . 5 Reactor . | . . . . . . Propulsion 33 | 3 . 2 5 7 16 Treads . | . . . . . . Leg 27 | . . 2 5 7 13 Wheel 3 | 3 . . . . . Hover 3 | . . . . . 3 Flight . | . . . . . . Utility 28 | 2 . 2 1 7 16 Device 6 | . . 1 . 1 4 Storage 7 | 2 . 1 1 1 2 Processor 1 | . . . . . 1 Hackware . | . . . . . . Protection 14 | . . . . 5 9 Artifact . | . . . . . . Weapon 24 | 1 1 3 4 6 9 Energy Gun 11 | 1 . . 1 3 6 Energy Cannon 2 | . . . 1 1 . Ballistic Gun 6 | . 1 1 . 1 3 Ballistic Cannon . | . . . . . . Launcher 2 | . . 1 1 . . Special Weapon 1 | . . 1 . . . Impact Weapon . | . . . . . . Slashing Weapon 2 | . . . 1 1 . Piercing Weapon . | . . . . . . Special Melee Weapon . | . . . . . . Unidentified Prototypes 4 | . . . . 1 3 Parts Lost 27 | . . 4 2 . 21 Power 6 | . . 2 . . 4 Propulsion 8 | . . . 1 . 7 Utility 6 | . . 1 . . 5 Weapon 7 | . . 1 1 . 5 Highest Loss Streak 10 | . . 3 2 . 10 To Critical Strikes . | . . . . . . Average Slot Usage (%) 92 | . 98 89 99 92 91 Engine 6 | . 14 6 9 3 5 Core 4 | . . . 1 5 7 Leg 27 | . . 26 44 36 22 Wheel 1 | . 28 1 . . . Hover 1 | . . . . . 2 Device 6 | . . 9 . 1 8 Storage 12 | . 28 17 22 9 7 Protection 8 | . . . . 18 11 Energy Gun 8 | . 14 . 2 5 12 Ballistic Gun 6 | . 13 18 . 3 4 Slashing Weapon 4 | . . . 8 8 3 Peak Build Rating 46 | 6 7 9 15 32 46 Average Rating 24 | 4 6 7 12 26 36 On Entrance 11 | . 6 7 7 15 32 Naked Turns . | . . . . . . Heaviest Build 74 | 10 11 13 22 48 74 Greatest Support 74 | 26 26 26 40 67 74 Greatest Overweight (x) 6 | . . . . . 6 Average Overweight (x) . | . . . . . . Largest Inventory Capacity 20 | 8 8 8 10 10 20 Average Capacity 11 | 6 8 8 9 10 13 Most Carried 18 | 8 8 8 10 10 18 Average Carried 8 | 5 7 4 7 9 10 Final Capacity 10 | 8 8 8 10 10 10 Final Carried 10 | 8 8 6 10 10 8 Class Distribution -------------------- 45% | Mutant 38% | Scavenger-Mutant 16% | Scavenger-Tank Dominant Class ---------------- Mutant | -10/Materials Mutant | -10/Mines Scavenger-Mutant | -9/Materials Scavenger-Mutant | -8/Materials Scavenger-Tank | -7/Factory Resources | -11 -10 -10 -9 -8 -7 ----------- Run | Yrd Mat Min Mat Mat Fac Matter Collected 1260 | 318 16 224 123 100 479 Remotely . | . . . . . . Salvage Created 1874 | 151 22 225 207 406 863 Parts 94 | 9 6 14 19 17 29 Haulers Intercepted . | . . . . . . Recyclers Shooed 4 | 1 . . . 2 1 Parts Field Recycled . | . . . . . . Retrieved Matter . | . . . . . . Parts Self-Destructed . | . . . . . . Prevented . | . . . . . . Kills | -11 -10 -10 -9 -8 -7 ------- Run | Yrd Mat Min Mat Mat Fac Combat Hostiles Destroyed 33 | . . 4 8 6 15 Melee 13 | . . . 2 5 6 Guns 7 | . . 1 . . 6 Cannons 2 | . . . 1 1 . AOE 8 | . . 3 5 . . Classes Destroyed 12 | 3 . 2 3 1 3 Worker 5 | 2 . 2 . . 1 Builder 2 | . . 1 1 . . Tunneler 2 | 1 1 . . . . Recycler 3 | 1 . . . 1 1 Operator 1 | . . . 1 . . Swarmer 4 | . . . 4 . . Grunt 19 | . . 4 3 2 10 Brawler 1 | . . . . 1 . Duelist 1 | . . . . . 1 Sentry 5 | . . . 1 3 1 Hunter 1 | . . . . . 1 Programmer 2 | . . . . . 2 Best Kill Streak 5 | 2 1 2 5 4 3 Combat Bots Only 5 | . . 2 5 3 3 Max Kills in Single Turn 3 | 1 1 1 3 1 1 Gunslinging . | . . . . . . Exploded 3 | . . 1 3 . . Melee 1 | . . . 1 1 1 Uniques/NPCs Destroyed . | . . . . . . Combat | -11 -10 -10 -9 -8 -7 -------- Run | Yrd Mat Min Mat Mat Fac Hostile Shots Fired 492 | . . 41 16 43 392 Missed 126 | . . 11 4 12 99 Damage Taken 4882 | . . 444 323 472 3643 Core 904 | . . 119 47 23 715 Absorbed by Shields 262 | . . . . . 262 Redirected to Shielding 223 | . . . . 5 218 Ignored by Resistances 52 | . . . . . 52 Regen/Repaired (Parts) 19 | . . . 19 . . Core Remaining (%) 83 | 100 . 52 88 95 . Volleys Fired 115 | 19 6 36 8 6 40 Largest 3 | 1 2 2 2 2 3 Hottest 161 | 40 60 60 98 133 161 Shots Fired 194 | 19 12 54 9 8 92 Gun 176 | 19 12 47 . 6 92 Cannon 9 | . . . 7 2 . Launcher 7 | . . 5 2 . . Special 2 | . . 2 . . . Kinetic 76 | . 6 41 . . 29 Thermal 110 | 19 6 8 7 8 62 Explosive 7 | . . 5 2 . . Electromagnetic 1 | . . . . . 1 Robot Hit Streak 11 | 8 4 10 6 3 11 Robot Miss Streak 6 | 2 1 2 1 6 5 Penetration Max . | . . . . . . Secondary Targets 1 | . . . . . 1 Max Gunslinging Chain 1 | . . . . . 1 Shots Hit Robots 192 | 14 9 40 11 20 98 Core Hits 76 | 5 3 18 11 11 28 Critical Kills . | . . . . . . Critical Parts Destroyed 1 | . . . . . 1 Critical Strikes 15 | . . . 1 2 12 Burn 3 | . . . . . 3 Destroy 1 | . . . . . 1 Sever 11 | . . . 1 2 8 Melee Attacks 70 | . . . 7 18 45 Impact . | . . . . . . Slashing 70 | . . . 7 18 45 Piercing . | . . . . . . Sneak Attacks 3 | . . . . 1 2 Combat Hostiles . | . . . . . . Follow-up Attacks . | . . . . . . Damage Inflicted 4263 | 154 84 541 524 546 2414 Guns 1808 | 154 84 312 . 71 1187 Cannons 184 | . . . 144 40 . Explosions 479 | . . 229 250 . . Melee 1791 | . . . 130 435 1226 Ramming 1 | . . . . . 1 Kinetic 562 | . 48 259 . . 255 Thermal 1591 | 154 36 53 305 111 932 Explosive 318 | . . 229 89 . . Electromagnetic . | . . . . . . Impact . | . . . . . . Slashing 1791 | . . . 130 435 1226 Piercing . | . . . . . . Highest Corruption 9 | . . . . . 9 Average Corruption 3 | . . . . . 3 Corruption Purged . | . . . . . . Corruption Blocked . | . . . . . . Effects 26 | . . . . . 26 Message Errors 4 | . . . . . 4 Matter Fused 11 | . . . . . 11 Energy Discharges 3 | . . . . . 3 Parts Rejected 1 | . . . . . 1 Data Loss (minor) 3 | . . . . . 3 Data Loss (major) 2 | . . . . . 2 Misfires 1 | . . . . . 1 Weapon Failures 1 | . . . . . 1 Overload Shots . | . . . . . . Overflow Damage 220 | . . . 120 23 77 Projectiles . | . . . . . . Explosions 120 | . . . 120 . . Melee 100 | . . . . 23 77 Knockbacks . | . . . . . . Impact . | . . . . . . Kinetic . | . . . . . . Secondary . | . . . . . . Self-Inflicted Damage 229 | . . 31 198 . . Shots 4 | . . 1 3 . . Rammed 1 | . . . . . 1 Targets Rammed 1 | . . . . . 1 Kicked . | . . . . . . Crushed . | . . . . . . Highest Temperature 502 | 15 40 166 155 69 502 Average Temperature 133 | 12 18 101 69 25 156 Received Heat Transfer 1824 | . . 309 54 252 1209 Effects 16 | . . . . . 16 Shutdowns 5 | . . . . . 5 Energy Bleed 4 | . . . . . 4 Interference 2 | . . . . . 2 Matter Decay 2 | . . . . . 2 Short Circuit 2 | . . . . . 2 Damage (minor) 1 | . . . . . 1 Siege Activations . | . . . . . . Robots Corrupted . | . . . . . . Combat Hostiles . | . . . . . . Parts Fried . | . . . . . . Impact Corruptions . | . . . . . . Robots Melted 3 | . . . . . 3 Combat Hostiles 3 | . . . . . 3 Parts Melted 3 | . . . 1 . 2 Heat Transferred 3079 | 350 75 125 409 159 1961 Parts Sabotaged . | . . . . . . Parts Stolen . | . . . . . . Parts Stripped . | . . . . . . Power Chain Reactions . | . . . . . . Alert | -11 -10 -10 -9 -8 -7 ------- Run | Yrd Mat Min Mat Mat Fac Peak Influence 381 | 20 18 153 381 177 180 Initial 80 | . 13 6 5 76 80 Average 106 | 11 13 76 270 109 91 Maximum Alert Level 1 | . . . 1 . . Low Security (%) 89 | 100 100 100 13 100 100 Level 1 10 | . . . 86 . . Level 2 . | . . . . . . Level 3 . | . . . . . . Level 4 . | . . . . . . Level 5 . | . . . . . . High Security . | . . . . . . Max Security . | . . . . . . Squads Dispatched 8 | . . . 1 1 6 Investigation 1 | . . . 1 . . Extermination 3 | . . . . . 3 Reinforcement 3 | . . . . . 3 Assault . | . . . . . . Garrison 1 | . . . . 1 . Intercept . | . . . . . . Searches Triggered . | . . . . . . Construction Impeded . | . . . . . . Haulers Reinforced . | . . . . . . Active Scanning Responses . | . . . . . . Cargo Convoy Interrupts . | . . . . . . Stealth | -11 -10 -10 -9 -8 -7 --------- Run | Yrd Mat Min Mat Mat Fac Distress Signals 1 | . . . . . 1 Communications Jammed . | . . . . . . Distress Signals . | . . . . . . Times Spotted 51 | . 1 6 12 8 24 Peak Tracking Total 7 | . 1 3 7 3 5 Tactical Retreats 2 | . . 1 1 . . Traps | -11 -10 -10 -9 -8 -7 ------- Run | Yrd Mat Min Mat Mat Fac Traps Triggered . | . . . . . . Indirectly . | . . . . . . Trap Hack Attempts . | . . . . . . Triggered . | . . . . . . Disarmed . | . . . . . . Reprogrammed . | . . . . . . Reused . | . . . . . . Traps Extracted . | . . . . . . Installed . | . . . . . . Triggered . | . . . . . . Machines | -11 -10 -10 -9 -8 -7 ---------- Run | Yrd Mat Min Mat Mat Fac Machines Disabled 4 | . . . 3 . 1 Max in Single Turn 3 | . . . 3 . 1 Machines Repaired . | . . . . . . Machines Dismantled . | . . . . . . Machines Sabotaged . | . . . . . . Overloaded Fab Kills . | . . . . . . Hacking | -11 -10 -10 -9 -8 -7 --------- Run | Yrd Mat Min Mat Mat Fac Machines Accessed 14 | . 2 . 3 5 4 Terminals 12 | . 2 . 2 4 4 Fabricators . | . . . . . . Repair Stations 1 | . . . 1 . . Recycling Units . | . . . . . . Scanalyzers . | . . . . . . Garrison Access 1 | . . . . 1 . Total Hacks 42 | . 5 . 15 13 9 Successful 21 | . 2 . 9 8 2 Failed 21 | . 3 . 6 5 7 Catastrophic . | . . . . . . Database Lockouts . | . . . . . . Manual . | . . . . . . Terminals 35 | . 5 . 10 11 9 Fabricators . | . . . . . . Repair Stations 5 | . . . 5 . . Recycling Units . | . . . . . . Scanalyzers . | . . . . . . Garrison Access 2 | . . . . 2 . Terminal Hacks 18 | . 2 . 7 7 2 Record 8 | . . . 2 4 2 Robot Analysis 1 | . . . . 1 . Prototype ID Bank 1 | . . . 1 . . Terminal Index 1 | . . . 1 . . Alert Level 1 | . 1 . . . . Locate Traps 1 | . . . . 1 . Dispatch Records 3 | . . . 2 1 . Transport Status 1 | . . . 1 . . Hauler Manifests 1 | . 1 . . . . Fabricator Hacks . | . . . . . . Repair Station Hacks 2 | . . . 2 . . Scan Component 1 | . . . 1 . . Repair 1 | . . . 1 . . Recycling Unit Hacks . | . . . . . . Scanalyzer . | . . . . . . Garrison Access Hacks 1 | . . . . 1 . Coupler Status 1 | . . . . 1 . Unauthorized Hacks . | . . . . . . Terminals . | . . . . . . Fabricators . | . . . . . . Repair Stations . | . . . . . . Recycling Units . | . . . . . . Scanalyzers . | . . . . . . Garrison Access . | . . . . . . Data Cores Recovered 1 | . . . 1 . . Used 1 | . . . 1 . . Hacking Detections 12 | . 2 . 3 4 3 Full Trace Events 1 | . . . 1 . . Feedback Events . | . . . . . . Feedback Blocked . | . . . . . . Robot Schematics Acquired . | . . . . . . Robots Built . | . . . . . . Authchips . | . . . . . . Time . | . . . . . . Total Robot Build Rating . | . . . . . . Part Schematics Acquired . | . . . . . . Parts Built . | . . . . . . Authchips . | . . . . . . Time . | . . . . . . Total Part Build Rating . | . . . . . . Parts Repaired 1 | . . . 1 . . Time 38 | . . . 38 . . Parts Recycled . | . . . . . . Recycled Matter . | . . . . . . Retrieved Matter . | . . . . . . Retrieved Components . | . . . . . . Parts Scanalyzed . | . . . . . . Part Schematics Acquired . | . . . . . . Parts Damaged . | . . . . . . Bothacking | -11 -10 -10 -9 -8 -7 ------------ Run | Yrd Mat Min Mat Mat Fac Used RIF Installer . | . . . . . . Robots Hacked . | . . . . . . Non-combat . | . . . . . . Combat . | . . . . . . Robot Hacks Applied . | . . . . . . Relay Couplers Released . | . . . . . . Fabnet Peak Effective % . | . . . . . . Robots Rewired . | . . . . . . Allies Hacked . | . . . . . . Hacks Repelled . | . . . . . . Allies | -11 -10 -10 -9 -8 -7 -------- Run | Yrd Mat Min Mat Mat Fac Total Allies 3 | . . 3 . . . Largest Group 3 | . . 3 3 . . Highest-Rated Group 40 | . . 40 40 . . Highest-Rated Ally 16 | . . 16 16 . . Total Orders . | . . . . . . Ally Attacks 13 | . . . 13 . . Total Damage 133 | . . . 133 . . Kills 3 | . . . 3 . . Allies Corrupted . | . . . . . . Allies Melted . | . . . . . . Intel | -11 -10 -10 -9 -8 -7 ------- Run | Yrd Mat Min Mat Mat Fac Robot Analysis Total 1 | . . . . 1 . Derelict Logs Recovered 1 | . . 1 . . . Drone Launches . | . . . . . . Drone Recoveries . | . . . . . . Exploration | -11 -10 -10 -9 -8 -7 ------------- Run | Yrd Mat Min Mat Mat Fac Turns Passed 3514 | 173 140 589 418 646 1548 Spaces Moved 2187 | 140 132 385 270 415 845 Core 35 | 22 . . . . 13 Treads . | . . . . . . Legs 1811 | . . 382 270 415 744 Wheels 253 | 118 132 3 . . . Hover 88 | . . . . . 88 Flight . | . . . . . . Fastest Speed 50 | 50 90 90 120 120 111 Average Speed 124 | 79 90 119 120 126 139 Slowest Speed 370 | 90 90 120 120 127 370 Overloaded Moves . | . . . . . . Propulsion Burnouts . | . . . . . . Robots Hopped . | . . . . . . Cave-ins Triggered . | . . . . . . Exploration Rate (%) 29 | 6 16 69 26 35 25 Regions Visited 5 Branch Regions 1 Pre-discovered Areas . | . . . . . . Known Exits Taken . | . . . . . . Unknown Exits Taken 5 | 1 1 1 1 1 . Scrap Searched . | . . . . . . Spaces Dug . | . . . . . . Terrain Destroyed 90 | . . 46 44 . . Melee . | . . . . . . Projectile . | . . . . . . AOE 90 | . . 46 44 . . Terrain Rammed . | . . . . . . Walls Destroyed . | . . . . . . Machines Disabled . | . . . . . . Actions | -11 -10 -10 -9 -8 -7 --------- Run | Yrd Mat Min Mat Mat Fac Total 2703 | 183 143 467 344 503 1063 Wait 70 | . . 20 26 8 16 Move 2182 | 139 131 384 269 414 845 Hop . | . . . . . . Pick Up 96 | 16 3 8 16 17 36 Fast Attach . | . . . . . . Attach 41 | 6 1 6 4 4 20 Detach 9 | . . 2 . 3 4 Swap 62 | 1 . 5 7 17 32 Drop 57 | 2 2 6 7 16 24 Fire 115 | 19 6 36 8 6 40 Melee 70 | . . . 7 18 45 Ram 1 | . . . . . 1 Kick . | . . . . . . Crush . | . . . . . . Escape Stasis . | . . . . . . Rewire . | . . . . . . Trap . | . . . . . . Miscellaneous . | . . . . . . Route ------- -11/Scrapyard -10/Materials -10/Mines -9/Materials -8/Materials -7/Factory History --------- Turn | Location | Event 6 | -11/Scrapyard | Discovered new exit (range 14) 174 | -11/Scrapyard | Entered Materials 203 | -10/Materials | Discovered new exit (range 16) 302 | -10/Materials | Build established: Mutant 314 | -10/Materials | Entered Mines 369 | -10/Mines | Lost 3 parts (1p1u1w) 393 | -10/Mines | Learned Materials trap positions 631 | -10/Mines | Discovered new exit (range 11) 644 | -10/Mines | Assisted by bots powering up and referring to "LRC-V3" 903 | -10/Mines | Entered Materials 903 | -9/Materials | Accompanied by 3 allies 903 | -9/Materials | Evolved 2 slots: Propulsion x2 904 | -9/Materials | Loaded intel: 21 trap records 1194 | -9/Materials | Build established: Scavenger-Mutant 1198 | -9/Materials | Discovered new exit (range 4) 1276 | -9/Materials | Repaired Lgt. Nuclear Core 1321 | -9/Materials | Entered another Materials area 1321 | -8/Materials | Evolved 2 slots: Utility x2 1887 | -8/Materials | Garrison activated, responded to threat 1948 | -8/Materials | Discovered new exit (range 4) 1967 | -8/Materials | Entered Factory 1967 | -7/Factory | Evolved 2 slots: Power x1, Weapon x1 2008 | -7/Factory | Build established: Mutant 2765 | -7/Factory | Build established: Scavenger-Mutant 2804 | -7/Factory | Lost 5 parts (3n1u1w) 3116 | -7/Factory | Build established: Scavenger-Tank 3482 | -7/Factory | Core integrity fell below 50% 3512 | -7/Factory | Core integrity fell below 20% 3515 | -7/Factory | Destroyed by G-47 Trooper with Particle Gun Last Messages --------------- Slug penetrates Wall. System corrupted: Hvy. Ion Engine rejected. Imp. Weapon Shielding destroyed. XVK K6HZAE=J>OR9MYDEN: Aluminum Leg destroyed. M-28 Smith repairs P-60 Hacker. ALERT: Hostiles spotted, dispatching reinforcements to Terminal F011. Core Shielding destroyed. M-28 Smith repairs Shock Rifle. Imp. Deuterium Engine destroyed. SARI>L &H>T9S> D147SVJ8,BRZ9V<37UE Carbon-fiber Leg destroyed. Hvy. Laser destroyed. Assault Rifle destroyed. Door malfunctions. Gauss Rifle destroyed. System corrupted: Component data lost. Imp. Shield Generator destroyed. System corrupted: Energy discharge (-4). Map ----- +----------------------------------------------------+ | ###### #????????????????????????? | | # #????????????????????????? | | # #????????????????????????? | | # #??????###########???????? | | * + +??????# ]*#???????? | | # #??????# * #???????? | | # #??????# """ ! #???????? | | # ######## """ #???????? | | # # """ #???????? | | ###### # #???????? | | ?????# # #???????? | | ?????# + #???????? | | ?????# #################?? | | ?????####+### #??????# T ! ?? | | ????????????# ######## ] ?? | | ????????????# # ?? | | ????????????# # """ """ #? | | ????????????# # """ """ #? | | ????????????# / """ """ #? | | ????????????# # #? | | ????????????######## o# ! = #? | | ??????????????????## ###/#######? | | ??????????????????# = ## #??????? | | ??????????????????# ##p###????? | | ??????????????????# Y #????? | | ??????????????????+ @ #????? | | ??????????????????# #????? | | ??????????????????# # T###????? | | ??????????????????# g g ####??????? | | ??????????????????### g###?????????? | | ????????????????????# ????????????? | | ????????????????????# ????????????? | | ????????????????????# ????????????? | | ????????????????????# ????????????? | | ????????????????????# ?????????????? | | ????????????????????# ??????????????? | | ????????????????????+ ??????????????? | | ????????????????????#???????????????? | | ????????????????????????????????????? | | ????????????????????????????????????? | | ????????????????????????????????????? | | ????????????????????????????????????? | | ????????????????????????????????????? | | ????????????????????????????????????? | | ????????????????????????????????????? | | ????????????????????????????????????? | | ????????????????????????????????????? | | ????????????????????????????????????? | | ????????????????????????????????????? | | ????????????????????????????????????? | +----------------------------------------------------+ Best States ------------- Heat Dissipation 39 Energy Generation 26 Energy Capacity 470 Matter Stores 400 Matter Capacity 400 Sight Range 20 Terrain Scan Density 10 Additional Mass Support 9 Armor Coverage 825 Resistance: TH 15 Core Shielding 20 Power Shielding 33 Weapon Shielding 66 Evasion (%) 55 Item Schematics ----------------- None Robot Schematics ------------------ None Fabricated ------------ Nothing Alien Tech Used ----------------- None Achievements -------------- Dynamic Key Let's See Who's Tougher Troublemaker Challenges ------------ None Game ------ Seed CentriumStorageMagmablaster Manual? 0 Play Time 01:41:54 Cumulative 11.6 hours Start 2024.10.20 @ 17:15:07 End 2024.10.20 @ 20:02:22 Sessions 1 Manual Loads 0 Difficulty Rogue Special Mode None Game No. 14 Rogue 14 Adventurer 0 Explorer 0 Win Type - Total 0 Types 0/0/0/0/0/0/0/0/0 Lore% 2 Gallery% 12 Achievement% 12 Wizard Run 0 Options --------- Layout 1 ASCII 0 Keyboard 1 Movement Numpad Keybinds 0 Fullscreen 1 Font 24/Smallcaps Map View 50x35 Zoom Use 0% Tactical HUD 0 Map Filters NONE Filters NONE Steam 1 RUN: 22c98d05-8e4b-4730-9a08-18d357da9faa